fUST/lending_fUST_20240428
["ID","MTS","AMOUNT","RATE_DAILY","PERIOD"]
[323761733,1714252463655,-999.0,0.0003452,28]
[323761734,1714252463796,-209.4093218,0.00035616,30]
[323761735,1714252463826,-153.32395492,0.00039155,29]
[323761736,1714252463852,-153.32395492,0.00039655,31]
[323761737,1714252463877,-500.0,0.00039726,30]
[323761738,1714252463902,-500.0,0.00039726,30]
[323761739,1714252463927,-692.3,0.00039726,30]
[323761740,1714252463951,-500.0,0.00039726,30]
[323761741,1714252463975,-500.0,0.00039726,30]
[323761742,1714252464000,-500.0,0.00039726,30]
[323761743,1714252464024,-500.0,0.00039726,30]
[323761744,1714252464048,-500.0,0.00039726,30]
[323761745,1714252464073,-1850.13,0.00039726,30]
[323761746,1714252464098,-500.0,0.00039726,30]
[323761747,1714252464124,-500.0,0.00039726,30]
[323761748,1714252464148,-307.45845233,0.00039726,30]
[323761749,1714252464175,-4934.51,0.00039726,30]
[323761750,1714252464199,-540.43557123,0.00039726,30]
[323761751,1714252464223,-500.0,0.00039726,30]
[323761752,1714252464249,-686.67,0.00039726,30]
[323761753,1714252464275,-500.0,0.00039726,30]
[323761754,1714252464299,-500.0,0.00039726,30]
[323761755,1714252464324,-500.0,0.00039726,30]
[323761756,1714252464352,-500.0,0.0004,31]
[323761757,1714252464377,-500.0,0.0004,31]
[323761758,1714252464402,-692.3,0.0004,31]
[323761759,1714252464427,-500.0,0.0004,31]
[323761760,1714252464451,-500.0,0.0004,31]
[323761761,1714252464476,-500.0,0.0004,31]
[323761762,1714252464502,-500.0,0.0004,31]
[323761763,1714252464526,-500.0,0.0004,31]
[323761764,1714252464551,-1850.13,0.0004,31]
[323761765,1714252464576,-500.0,0.0004,31]
[323761766,1714252464602,-500.0,0.0004,31]
[323761767,1714252464627,-4934.51,0.0004,31]
[323761768,1714252464652,-500.0,0.0004,31]
[323761769,1714252464678,-686.67,0.0004,31]
[323761770,1714252464704,-500.0,0.0004,31]
[323761771,1714252464729,-500.0,0.0004,31]
[323761772,1714252464756,-500.0,0.0004,31]
[323761773,1714252464782,-508.50809214,0.00040273,32]
[323761774,1714252464808,-500.0,0.00040273,32]
[323761775,1714252464834,-692.3,0.00040273,32]
[323761776,1714252464860,-528.46150047,0.00040273,32]
[323761777,1714252464885,-501.9655271,0.00040273,32]
[323761778,1714252464910,-500.0,0.00040273,32]
[323761779,1714252464934,-500.0,0.00040273,32]
[323761780,1714252464959,-500.0,0.00040273,32]
[323761781,1714252464984,-1850.13,0.00040273,32]
[323761782,1714252465009,-560.08888021,0.00040273,32]
[323761783,1714252465127,-500.0,0.00040273,32]
[323761784,1714252465153,-4934.51,0.00040273,32]
[323761785,1714252465184,-500.0,0.00040273,32]
[323761786,1714252465208,-686.67,0.00040273,32]
[323761787,1714252465234,-500.0,0.00040273,32]
[323761788,1714252465259,-500.0,0.00040273,32]
[323761789,1714252465284,-300.30037828,0.00040273,32]
[323761790,1714252465310,-4243.88489498,0.00040547,33]
[323761791,1714252465335,-762.68,0.00040547,33]
[323761792,1714252465360,-605.0,0.00040547,33]
[323761793,1714252465385,-586.39409445,0.00040547,33]
[323761794,1714252465409,-500.0,0.00040547,33]
[323761795,1714252465439,-12151.6,0.00040547,33]
[323761796,1714252465464,-500.0,0.00040547,33]
[323761797,1714252465489,-1162.0,0.00040547,33]
[323761798,1714252465513,-500.0,0.00040547,33]
[323761799,1714252465539,-4091.25,0.00040547,33]
[323761800,1714252465564,-17885.03,0.00040547,33]
[323761801,1714252465589,-500.0,0.00040547,33]
[323761802,1714252465613,-1923.45,0.00040547,33]
[323761803,1714252465637,-779.96,0.00040547,33]
[323761804,1714252465664,-527.49177469,0.00040547,33]
[323761805,1714252465689,-500.0,0.00040547,33]
[323761806,1714252465715,-692.3,0.00040547,33]
[323761807,1714252465740,-500.0,0.00040547,33]
[323761808,1714252465764,-500.0,0.00040547,33]
[323761809,1714252465788,-500.0,0.00040547,33]
[323761810,1714252465813,-1850.13,0.00040547,33]
[323761811,1714252465838,-500.0,0.00040547,33]
[323761812,1714252465862,-4934.51,0.00040547,33]
[323761813,1714252465886,-500.0,0.00040547,33]
[323761814,1714252465915,-686.67,0.00040547,33]
[323761815,1714252465939,-500.0,0.00040547,33]
[323761816,1714252465963,-500.0,0.00040547,33]
[323761817,1714252465988,-185.36405554,0.00040617,30]
[323761818,1714252466012,-185.36405554,0.00040663,30]
[323761819,1714252466036,-160.0,0.00040726,17]
[323761820,1714252466061,-1688.0,0.000408,120]
[323761821,1714252466086,-397.57237085,0.00040806,30]
[323761822,1714252466110,-215.62028274,0.00040821,34]
[323761823,1714252466134,-500.0,0.00040821,34]
[323761824,1714252466159,-500.0,0.00040821,34]
[323761825,1714252466186,-500.0,0.00040821,34]
[323761826,1714252466211,-500.0,0.00040821,34]
[323761827,1714252466235,-500.0,0.00040821,34]
[323761828,1714252466260,-500.0,0.00040821,34]
[323761829,1714252466285,-822.51,0.00040821,34]
[323761830,1714252466399,-500.0,0.00040821,34]
[323761831,1714252466423,-500.0,0.00040821,34]
[323761832,1714252466450,-500.0,0.00040821,34]
[323761833,1714252466475,-500.0,0.00040821,34]
[323761834,1714252466498,-500.0,0.00040821,34]
[323761835,1714252466521,-500.0,0.00040821,34]
[323761836,1714252466546,-500.0,0.00040821,34]
[323761837,1714252466569,-788.14,0.00040821,34]
[323761838,1714252466594,-530.47579508,0.00040821,34]
[323761839,1714252466618,-500.0,0.00040821,34]
[323761840,1714252466642,-500.0,0.00040821,34]
[323761841,1714252466666,-500.0,0.00040821,34]
[323761842,1714252466690,-551.2006994,0.00040821,34]
[323761843,1714252466714,-500.0,0.00040821,34]
[323761844,1714252466739,-620.92002577,0.00040821,34]
[323761845,1714252466764,-552.18511941,0.00040821,34]
[323761846,1714252466791,-619.59,0.00040821,34]
[323761847,1714252466817,-500.0,0.00040821,34]
[323761848,1714252466842,-500.0,0.00040821,34]
[323761849,1714252466869,-500.0,0.00040821,34]
[323761850,1714252466895,-643.51,0.00040821,34]
[323761851,1714252466921,-500.0,0.00040821,34]
[323761852,1714252466948,-500.0,0.00040821,30]
[323761853,1714252467001,-500.0,0.00040821,34]
[323761854,1714252467052,-500.0,0.00040821,34]
[323761855,1714252467099,-500.0,0.00040821,34]
[323761856,1714252467148,-500.0,0.00040821,34]
[323761857,1714252467197,-500.0,0.00040821,34]
[323761858,1714252467242,-500.0,0.00040821,34]
[323761859,1714252467280,-500.0,0.00040821,34]
[323761860,1714252467321,-500.0,0.00040821,34]
[323761861,1714252467362,-500.0,0.00040821,34]
[323761862,1714252467403,-500.0,0.00040821,34]
[323761863,1714252467445,-747.06,0.00040821,34]
[323761864,1714252467487,-268.3642827,0.00040821,34]
[323761865,1714252467531,-500.0,0.00040821,34]
[323761866,1714252467573,-500.0,0.00040821,34]
[323761867,1714252467615,-500.0,0.00040821,34]
[323761868,1714252467654,-680.78,0.00040821,34]
[323761869,1714252467680,-500.0,0.00040821,34]
[323761870,1714252467705,-500.0,0.00040821,34]
[323761871,1714252467731,-500.0,0.00040821,34]
[323761872,1714252467756,-544.46404192,0.00040821,34]
[323761873,1714252467782,-500.0,0.00040821,34]
[323761874,1714252467808,-500.0,0.00040821,34]
[323761875,1714252468055,-500.0,0.00040821,34]
[323761876,1714252468105,-500.0,0.00040821,34]
[323761877,1714252468132,-500.0,0.00040821,34]
[323761878,1714252468162,-799.11,0.00040821,34]
[323761879,1714252468190,-1010.67,0.00040821,34]
[323761880,1714252468217,-506.74729434,0.00040821,34]
[323761881,1714252468244,-1290.8,0.00040821,34]
[323761882,1714252468271,-540.54,0.00040821,34]
[323761883,1714252468300,-500.0,0.00040821,34]
[323761884,1714252468326,-500.0,0.00040821,34]
[323761885,1714252468354,-500.0,0.00040821,34]
[323761886,1714252468381,-500.0,0.00040821,34]
[323761887,1714252468408,-500.0,0.00040821,34]
[323761888,1714252468434,-500.0,0.00040821,34]
[323761889,1714252468460,-2791.65,0.00040821,34]
[323761890,1714252468487,-501.69164206,0.00040821,34]
[323761891,1714252468512,-513.20493573,0.00040821,34]
[323761892,1714252468538,-500.0,0.00040821,34]
[323761893,1714252468565,-500.0,0.00040821,34]
[323761894,1714252468591,-738.83,0.00040821,34]
[323761895,1714252468618,-500.0,0.00040821,34]
[323761896,1714252468644,-500.0,0.00040821,34]
[323761897,1714252468671,-1473.62,0.00040821,34]
[323761898,1714252468696,-500.0,0.00040821,34]
[323761899,1714252468723,-268.02436611,0.00040821,34]
[323761900,1714252468751,-500.0,0.00040821,34]
[323761901,1714252468776,-653.44,0.00040821,34]
[323761902,1714252468802,-1022.29,0.00040821,34]
[323761903,1714252468829,-500.0,0.00040821,34]
[323761904,1714252468879,-500.0,0.00040821,34]
[323761905,1714252468910,-500.0,0.00040821,34]
[323761906,1714252468941,-500.0,0.00040821,34]
[323761907,1714252468968,-1339.82,0.00040821,34]
[323761908,1714252468997,-1586.5,0.00040821,34]
[323761909,1714252469023,-500.0,0.00040821,34]
[323761910,1714252469050,-500.0,0.00040821,34]
[323761911,1714252469086,-500.0,0.00040821,34]
[323761912,1714252469122,-500.0,0.00040821,34]
[323761913,1714252469152,-500.0,0.00040821,34]
[323761914,1714252469184,-722.19,0.00040821,34]
[323761915,1714252469213,-500.0,0.00040821,34]
[323761916,1714252469242,-167.35165254,0.00040821,34]
[323761917,1714252469271,-500.0,0.00040821,34]
[323761918,1714252469300,-500.0,0.00040821,34]
[323761919,1714252469328,-2341.24,0.00040821,34]
[323761920,1714252469357,-500.0,0.00040821,34]
[323761921,1714252469386,-264.96447792,0.00040821,34]
[323761922,1714252469415,-499.84127002,0.00040821,34]
[323761923,1714252469445,-760.85,0.00040821,34]
[323761924,1714252469474,-500.0,0.00040821,34]
[323761925,1714252469502,-500.0,0.00040821,34]
[323761926,1714252469529,-525.68557106,0.00040821,34]
[323761927,1714252469557,-500.0,0.00040821,34]
[323761928,1714252469586,-535.5,0.00040821,34]
[323761929,1714252469615,-500.0,0.00040821,34]
[323761930,1714252469642,-2690.9,0.00040821,34]
[323761931,1714252469670,-288.58208363,0.00040821,34]
[323761932,1714252469697,-431.37457693,0.00040821,34]
[323761933,1714252469726,-500.0,0.00040821,34]
[323761934,1714252469753,-798.97,0.00040821,34]
[323761935,1714252469923,-500.0,0.00040821,34]
[323761936,1714252469951,-899.58,0.00040821,34]
[323761937,1714252469979,-500.0,0.00040821,34]
[323761938,1714252470009,-582.02,0.00040821,34]
[323761939,1714252470035,-722.0,0.00040821,34]
[323761940,1714252470065,-560.75,0.00040821,34]
[323761941,1714252470094,-1009.14,0.00040821,34]
[323761942,1714252470121,-604.43,0.00040821,34]
[323761943,1714252470149,-502.6427497,0.00040821,34]
[323761944,1714252470179,-500.0,0.00040821,34]
[323761945,1714252470206,-1161.1,0.00040821,34]
[323761946,1714252470233,-500.0,0.00040821,34]
[323761947,1714252470261,-828.44,0.00040821,34]
[323761948,1714252470289,-500.0,0.00040821,34]
[323761949,1714252470316,-500.0,0.00040821,34]
[323761950,1714252470345,-500.0,0.00040821,34]
[323761951,1714252470372,-707.55,0.00040821,34]
[323761952,1714252470399,-500.0,0.00040821,34]
[323761953,1714252470425,-3277.64,0.00040821,34]
[323761954,1714252470452,-450.26612527,0.00040821,34]
[323761955,1714252470477,-2782.16,0.00040821,34]
[323761956,1714252470506,-500.0,0.00040821,34]
[323761957,1714252470535,-524.23,0.00040821,34]
[323761958,1714252470562,-500.0,0.00040821,34]
[323761959,1714252470590,-2381.08,0.00040821,34]
[323761960,1714252470617,-500.0,0.00040821,34]
[323761961,1714252470644,-500.0,0.00040821,34]
[323761962,1714252470671,-636.16,0.00040821,34]
[323761963,1714252470697,-1416.83,0.00040821,34]
[323761964,1714252470724,-577.52,0.00040821,34]
[323761965,1714252470750,-2057.12,0.00040821,34]
[323761966,1714252470776,-890.89,0.00040821,34]
[323761967,1714252470802,-500.0,0.00040821,34]
[323761968,1714252470827,-500.0,0.00040821,34]
[323761969,1714252470854,-500.0,0.00040821,34]
[323761970,1714252470881,-500.0,0.00040821,34]
[323761971,1714252470907,-500.0,0.00040821,34]
[323761972,1714252470933,-500.0,0.00040821,34]
[323761973,1714252470961,-500.0,0.00040821,34]
[323761974,1714252470987,-646.92,0.00040821,34]
[323761975,1714252471013,-502.59272356,0.00040821,34]
[323761976,1714252471042,-151.0,0.00040821,34]
[323761977,1714252471070,-529.43091438,0.00040821,34]
[323761978,1714252471097,-1134.45,0.00040821,34]
[323761979,1714252471124,-557.6,0.00040821,34]
[323761980,1714252471150,-500.0,0.00040821,34]
[323761981,1714252471178,-3418.05,0.00040821,34]
[323761982,1714252471205,-500.0,0.00040821,34]
[323761983,1714252471231,-480.21503476,0.00040821,34]
[323761984,1714252471260,-500.0,0.00040821,34]
[323761985,1714252471287,-512.19658391,0.00040821,34]
[323761986,1714252471315,-1000.0,0.00040821,30]
[323761987,1714252471342,-623.32,0.00040821,34]
[323761988,1714252471368,-500.0,0.00040821,34]
[323761989,1714252471394,-500.0,0.00040821,34]
[323761990,1714252471422,-500.0,0.00040821,34]
[323761991,1714252471450,-636.91,0.00040821,34]
[323761992,1714252471477,-500.0,0.00040821,34]
[323761993,1714252471503,-500.0,0.00040821,34]
[323761994,1714252471530,-500.0,0.00040821,34]
[323761995,1714252471559,-729.51,0.00040821,34]
[323761996,1714252471587,-500.0,0.00040821,34]
[323761997,1714252471617,-500.0,0.00040821,34]
[323761998,1714252471647,-500.0,0.00040821,34]
[323761999,1714252471675,-2360.47,0.00040821,34]
[323762000,1714252471703,-500.0,0.00040821,34]
[323762001,1714252471731,-500.0,0.00040821,34]
[323762002,1714252471760,-500.0,0.00040821,34]
[323762003,1714252471803,-2635.33,0.00040821,34]
[323762004,1714252471838,-500.0,0.00040821,34]
[323762005,1714252471870,-284.96352008,0.00040821,34]
[323762006,1714252471901,-673.61,0.00040821,34]
[323762007,1714252471933,-500.0,0.00040821,34]
[323762008,1714252471967,-500.0,0.00040821,34]
[323762009,1714252471997,-500.0,0.00040821,34]
[323762010,1714252472027,-500.0,0.00040821,34]
[323762011,1714252472058,-500.0,0.00040821,34]
[323762012,1714252472091,-500.0,0.00040821,34]
[323762013,1714252472123,-634.34,0.00040821,34]
[323762014,1714252472156,-200.0,0.00040821,30]
[323762015,1714252472191,-500.0,0.00040821,34]
[323762016,1714252472223,-500.0,0.00040821,34]
[323762017,1714252472254,-405.65395364,0.00040821,34]
[323762018,1714252472285,-500.0,0.00040821,34]
[323762019,1714252472447,-500.0,0.00040821,34]
[323762020,1714252472503,-907.87,0.00040821,34]
[323762021,1714252472531,-500.0,0.00040821,34]
[323762022,1714252472560,-500.0,0.00040821,34]
[323762023,1714252472588,-500.0,0.00040821,34]
[323762024,1714252472618,-3151.11,0.00040821,34]
[323762025,1714252472645,-500.0,0.00040821,34]
[323762026,1714252472673,-691.87,0.00040821,34]
[323762027,1714252472701,-500.0,0.00040821,34]
[323762028,1714252472730,-176.24002874,0.00040821,34]
[323762029,1714252472757,-569.83,0.00040821,34]
[323762030,1714252472787,-500.0,0.00040821,34]
[323762031,1714252472816,-500.0,0.00040821,34]
[323762032,1714252472845,-894.89,0.00040821,34]
[323762033,1714252472872,-500.0,0.00040821,34]
[323762034,1714252472899,-2691.32,0.00040821,34]
[323762035,1714252472926,-500.0,0.00040821,34]
[323762036,1714252472953,-2415.56,0.00040821,34]
[323762037,1714252472981,-614.17,0.00040821,34]
[323762038,1714252473008,-500.0,0.00040821,34]
[323762039,1714252473035,-566.08,0.00040821,34]
[323762040,1714252473063,-305.83178204,0.00040821,34]
[323762041,1714252473091,-500.0,0.00040821,34]
[323762042,1714252473118,-2929.92,0.00040821,34]
[323762043,1714252473145,-500.0,0.00040821,34]
[323762044,1714252473174,-1541.4,0.00040821,34]
[323762045,1714252473202,-203.8027996,0.00040821,34]
[323762046,1714252473230,-945.5,0.00040821,34]
[323762047,1714252473259,-500.0,0.00040821,34]
[323762048,1714252473288,-500.0,0.00040821,34]
[323762049,1714252473317,-657.1,0.00040821,34]
[323762050,1714252473347,-898.6,0.00040821,34]
[323762051,1714252473375,-500.0,0.00040821,34]
[323762052,1714252473404,-890.66,0.00040821,34]
[323762053,1714252473434,-919.13,0.00040821,34]
[323762054,1714252473463,-280.0464705,0.00040821,34]
[323762055,1714252473492,-500.0,0.00040821,34]
[323762056,1714252473524,-1482.33,0.00040821,34]
[323762057,1714252473552,-1379.12,0.00040821,34]
[323762058,1714252473584,-500.0,0.00040821,34]
[323762059,1714252473615,-500.0,0.00040821,34]
[323762060,1714252473647,-500.0,0.00040821,34]
[323762061,1714252473677,-2925.99,0.00040821,34]
[323762062,1714252473708,-1740.82,0.00040821,34]
[323762063,1714252473740,-189.31762191,0.00040821,20]
[323762064,1714252473773,-855.84,0.00040821,34]
[323762065,1714252473803,-500.0,0.00040821,34]
[323762066,1714252473832,-902.08,0.00040821,34]
[323762067,1714252473860,-1231.18,0.00040821,34]
[323762068,1714252473888,-4054.59,0.00040821,34]
[323762069,1714252473915,-818.38,0.00040821,34]
[323762070,1714252473944,-28103.97,0.00040821,34]
[323762071,1714252473972,-500.0,0.00040821,34]
[323762072,1714252474000,-857.63,0.00040821,34]
[323762073,1714252474035,-477.22019295,0.00040821,34]
[323762074,1714252474066,-675.96,0.00040821,34]
[323762075,1714252474096,-303.43632159,0.00040821,34]
[323762076,1714252474124,-500.0,0.00040821,34]
[323762077,1714252474153,-500.0,0.00040821,34]
[323762078,1714252474183,-500.0,0.00040821,34]
[323762079,1714252474211,-1475.85,0.00040821,34]
[323762080,1714252474239,-756.39,0.00040821,34]
[323762081,1714252474267,-504.37,0.00040821,34]
[323762082,1714252474295,-500.0,0.00040821,34]
[323762083,1714252474323,-1375.95,0.00040821,34]
[323762084,1714252474352,-500.0,0.00040821,34]
[323762085,1714252474378,-710.32,0.00040821,34]
[323762086,1714252474404,-1489.54,0.00040821,34]
[323762087,1714252474431,-1102.9,0.00040821,34]
[323762088,1714252474457,-889.9,0.00040821,34]
[323762089,1714252474483,-500.0,0.00040821,34]
[323762090,1714252474510,-21659.95,0.00040821,34]
[323762091,1714252474536,-519.76,0.00040821,34]
[323762092,1714252474563,-595.13,0.00040821,34]
[323762093,1714252474589,-3344.28,0.00040821,34]
[323762094,1714252474616,-690.82,0.00040821,34]
[323762095,1714252474644,-500.0,0.00040821,34]
[323762096,1714252474672,-1796.37,0.00040821,34]
[323762097,1714252474700,-500.0,0.00040821,34]
[323762098,1714252474728,-500.0,0.00040821,34]
[323762099,1714252474756,-500.0,0.00040821,34]
[323762100,1714252474782,-753.84,0.00040821,34]
[323762101,1714252474809,-500.0,0.00040821,34]
[323762102,1714252474837,-500.0,0.00040821,34]
[323762103,1714252474865,-500.0,0.00040821,34]
[323762104,1714252474893,-36764.6,0.00040821,34]
[323762105,1714252474922,-1004.29,0.00040821,34]
[323762106,1714252474948,-2157.54,0.00040821,34]
[323762107,1714252474974,-500.0,0.00040821,34]
[323762108,1714252475003,-500.0,0.00040821,34]
[323762109,1714252475032,-2765.06,0.00040821,34]
[323762110,1714252475058,-500.0,0.00040821,34]
[323762111,1714252475086,-2618.96,0.00040821,34]
[323762112,1714252475114,-500.0,0.00040821,34]
[323762113,1714252475141,-767.26,0.00040821,34]
[323762114,1714252475171,-1308.84,0.00040821,34]
[323762115,1714252475199,-5243.6,0.00040821,21]
[323762116,1714252475227,-500.0,0.00040821,34]
[323762117,1714252475253,-1551.47,0.00040821,34]
[323762118,1714252475280,-1595.4,0.00040821,34]
[323762119,1714252475307,-1163.33,0.00040821,34]
[323762120,1714252475333,-1612.51,0.00040821,34]
[323762121,1714252475361,-1336.15,0.00040821,34]
[323762122,1714252475389,-1448.09,0.00040821,34]
[323762123,1714252475417,-500.0,0.00040821,34]
[323762124,1714252475593,-762.68,0.00040821,34]
[323762125,1714252475622,-9678.82,0.00040821,34]
[323762126,1714252475649,-605.0,0.00040821,34]
[323762127,1714252475676,-500.0,0.00040821,34]
[323762128,1714252475704,-12151.6,0.00040821,34]
[323762129,1714252475730,-500.0,0.00040821,34]
[323762130,1714252475757,-1162.0,0.00040821,34]
[323762131,1714252475784,-500.0,0.00040821,34]
[323762132,1714252475812,-4091.25,0.00040821,34]
[323762133,1714252475839,-17885.03,0.00040821,34]
[323762134,1714252475867,-500.0,0.00040821,34]
[323762135,1714252475894,-1923.45,0.00040821,34]
[323762136,1714252475920,-779.96,0.00040821,34]
[323762137,1714252475947,-500.0,0.00040821,34]
[323762138,1714252475977,-692.3,0.00040821,34]
[323762139,1714252476003,-500.0,0.00040821,34]
[323762140,1714252476030,-500.0,0.00040821,34]
[323762141,1714252476058,-500.0,0.00040821,34]
[323762142,1714252476088,-1850.13,0.00040821,34]
[323762143,1714252476118,-500.0,0.00040821,34]
[323762144,1714252476144,-4934.51,0.00040821,34]
[323762145,1714252476173,-500.0,0.00040821,34]
[323762146,1714252476199,-686.67,0.00040821,34]
[323762147,1714252476227,-500.0,0.00040821,34]
[323762148,1714252476255,-500.0,0.00040821,34]
[323762149,1714252476281,-2000.0,0.000409,16]
[323762150,1714252476307,-989.0,0.000409,16]
[323762151,1714252476336,-2000.0,0.000409,16]
[323762152,1714252476365,-2000.0,0.000409,16]
[323762153,1714252476394,-285.0,0.0004098,35]
[323762154,1714252477272,-285.0,0.0004099,35]
[323762155,1714252477300,-397.57237085,0.00040995,30]
[323762156,1714252477331,-1044.07,0.00041,120]
[323762157,1714252477360,-160.0,0.0004101,18]
[323762158,1714252477389,-500.0,0.00041095,35]
[323762159,1714252477905,-209.97987673,0.00041095,35]
[323762160,1714252477938,-500.0,0.00041095,35]
[323762161,1714252477972,-500.0,0.00041095,35]
[323762162,1714252478000,-500.0,0.00041095,35]
[323762163,1714252478028,-500.0,0.00041095,35]
[323762164,1714252478057,-822.51,0.00041095,35]
[323762165,1714252478085,-500.0,0.00041095,35]
[323762166,1714252478114,-500.0,0.00041095,35]
[323762167,1714252478140,-500.0,0.00041095,35]
[323762168,1714252478167,-500.0,0.00041095,35]
[323762169,1714252478195,-500.0,0.00041095,35]
[323762170,1714252478221,-500.0,0.00041095,35]
[323762171,1714252478249,-500.0,0.00041095,35]
[323762172,1714252478276,-788.14,0.00041095,35]
[323762173,1714252478303,-500.0,0.00041095,35]
[323762174,1714252478329,-500.0,0.00041095,35]
[323762175,1714252478356,-500.0,0.00041095,35]
[323762176,1714252478383,-500.0,0.00041095,35]
[323762177,1714252478416,-619.59,0.00041095,35]
[323762178,1714252478444,-500.0,0.00041095,35]
[323762179,1714252478470,-500.0,0.00041095,35]
[323762180,1714252478498,-500.0,0.00041095,35]
[323762181,1714252478524,-643.51,0.00041095,35]
[323762182,1714252478551,-500.0,0.00041095,35]
[323762183,1714252478577,-500.0,0.00041095,30]
[323762184,1714252478604,-494.16530097,0.00041095,35]
[323762185,1714252478629,-500.0,0.00041095,35]
[323762186,1714252478655,-500.0,0.00041095,35]
[323762187,1714252478681,-578.06063354,0.00041095,35]
[323762188,1714252478707,-500.0,0.00041095,35]
[323762189,1714252478734,-500.0,0.00041095,35]
[323762190,1714252478761,-158.87271531,0.00041095,35]
[323762191,1714252478787,-500.0,0.00041095,35]
[323762192,1714252478814,-500.0,0.00041095,35]
[323762193,1714252478842,-500.0,0.00041095,35]
[323762194,1714252478869,-747.06,0.00041095,35]
[323762195,1714252478897,-500.0,0.00041095,35]
[323762196,1714252478922,-500.0,0.00041095,35]
[323762197,1714252478948,-500.0,0.00041095,35]
[323762198,1714252478974,-680.78,0.00041095,35]
[323762199,1714252479000,-502.87516432,0.00041095,35]
[323762200,1714252479026,-500.0,0.00041095,35]
[323762201,1714252479052,-500.0,0.00041095,35]
[323762202,1714252479080,-500.0,0.00041095,35]
[323762203,1714252479108,-500.0,0.00041095,35]
[323762204,1714252479136,-500.0,0.00041095,35]
[323762205,1714252479165,-500.0,0.00041095,35]
[323762206,1714252479195,-500.0,0.00041095,35]
[323762207,1714252479223,-799.11,0.00041095,35]
[323762208,1714252479252,-1010.67,0.00041095,35]
[323762209,1714252479280,-1290.8,0.00041095,35]
[323762210,1714252479307,-540.54,0.00041095,35]
[323762211,1714252479336,-500.0,0.00041095,35]
[323762212,1714252479364,-469.95082096,0.00041095,35]
[323762213,1714252479391,-500.0,0.00041095,35]
[323762214,1714252479417,-500.0,0.00041095,35]
[323762215,1714252479445,-500.0,0.00041095,35]
[323762216,1714252479473,-622.59033098,0.00041095,35]
[323762217,1714252479499,-2791.65,0.00041095,35]
[323762218,1714252479528,-500.0,0.00041095,35]
[323762219,1714252479559,-500.0,0.00041095,35]
[323762220,1714252479586,-738.83,0.00041095,35]
[323762221,1714252479612,-273.15165351,0.00041095,35]
[323762222,1714252479640,-500.0,0.00041095,35]
[323762223,1714252479669,-1473.62,0.00041095,35]
[323762224,1714252479695,-500.0,0.00041095,35]
[323762225,1714252479722,-500.0,0.00041095,35]
[323762226,1714252479747,-653.44,0.00041095,35]
[323762227,1714252479775,-1022.29,0.00041095,35]
[323762228,1714252479932,-601.09181321,0.00041095,35]
[323762229,1714252479960,-500.0,0.00041095,35]
[323762230,1714252479988,-500.0,0.00041095,35]
[323762231,1714252480015,-500.0,0.00041095,35]
[323762232,1714252480046,-1339.82,0.00041095,35]